[Event "Early-Titled-Tuesday-Blitz-October-17-2023"]
[Site "Chess.com"]
[Date "2023.10.17"]
[Round "11"]
[White "Chessbard1972"]
[Black "kritipatel"]
[Result "1-0"]
[WhiteElo "2337"]
[BlackElo "2125"]
[TimeControl "180+1"]
[EndTime "10:11:04 PDT"]
[Termination "Chessbard1972 won by checkmate"]

1. e4 {[%clk 0:03:00.9]} 1... e5 {[%clk 0:03:00]} 2. Nf3 {[%clk 0:03:00.4]} 2...
Nc6 {[%clk 0:03:00.6]} 3. Bc4 {[%clk 0:03:00.2]} 3... Nf6 {[%clk 0:03:01.1]} 4.
Ng5 {[%clk 0:02:59.7]} 4... d5 {[%clk 0:02:59.7]} 5. exd5 {[%clk 0:02:59.7]}
5... Na5 {[%clk 0:03:00.4]} 6. Bb5+ {[%clk 0:02:59.7]} 6... c6 {[%clk
0:03:01.2]} 7. dxc6 {[%clk 0:03:00]} 7... bxc6 {[%clk 0:03:02.1]} 8. Bd3 {[%clk
0:03:00]} 8... Nd5 {[%clk 0:02:59.4]} 9. Nf3 {[%clk 0:02:58.4]} 9... Bd6 {[%clk
0:02:47.1]} 10. O-O {[%clk 0:02:49.3]} 10... Nf4 {[%clk 0:02:47.4]} 11. Re1
{[%clk 0:02:41.6]} 11... Nxd3 {[%clk 0:02:39.9]} 12. cxd3 {[%clk 0:02:41.3]}
12... Qf6 {[%clk 0:02:20]} 13. Nxe5 {[%clk 0:02:33.4]} 13... O-O {[%clk
0:02:00.6]} 14. d4 {[%clk 0:02:32.5]} 14... Bb7 {[%clk 0:01:53.6]} 15. Nc3
{[%clk 0:02:28.5]} 15... Rfe8 {[%clk 0:01:49.2]} 16. Ne4 {[%clk 0:02:26.2]}
16... Qe7 {[%clk 0:01:31.9]} 17. Nxd6 {[%clk 0:02:24.3]} 17... Qxd6 {[%clk
0:01:32.8]} 18. d3 {[%clk 0:02:08.4]} 18... Qxd4 {[%clk 0:01:29.9]} 19. Re4
{[%clk 0:01:52.3]} 19... Qd6 {[%clk 0:01:08.2]} 20. Bf4 {[%clk 0:01:49.6]} 20...
Qf6 {[%clk 0:00:56.5]} 21. Bg3 {[%clk 0:01:39]} 21... c5 {[%clk 0:00:54.2]} 22.
Re1 {[%clk 0:01:34]} 22... Nc6 {[%clk 0:00:43.4]} 23. Nxc6 {[%clk 0:01:24.9]}
23... Qxc6 {[%clk 0:00:44.3]} 24. f3 {[%clk 0:01:24.6]} 24... Rad8 {[%clk
0:00:38]} 25. Rxe8+ {[%clk 0:01:19.4]} 25... Qxe8 {[%clk 0:00:34.4]} 26. Qc2
{[%clk 0:01:09.2]} 26... Qb5 {[%clk 0:00:29.2]} 27. Re1 {[%clk 0:01:05]} 27...
h6 {[%clk 0:00:20.6]} 28. Bf2 {[%clk 0:01:02.4]} 28... Ba6 {[%clk 0:00:16.7]}
29. Bxc5 {[%clk 0:00:57.3]} 29... Qxd3 {[%clk 0:00:14]} 30. Qxd3 {[%clk
0:00:56.6]} 30... Rxd3 {[%clk 0:00:14.6]} 31. b4 {[%clk 0:00:56.2]} 31... Rd2
{[%clk 0:00:14.3]} 32. a4 {[%clk 0:00:55.2]} 32... Bc4 {[%clk 0:00:14.1]} 33.
Re7 {[%clk 0:00:49.9]} 33... Ra2 {[%clk 0:00:11.9]} 34. Rxa7 {[%clk 0:00:48]}
34... Ra1+ {[%clk 0:00:12.3]} 35. Kf2 {[%clk 0:00:48.2]} 35... Ra2+ {[%clk
0:00:12.5]} 36. Kg3 {[%clk 0:00:45.7]} 36... Bf1 {[%clk 0:00:13.1]} 37. b5
{[%clk 0:00:43.3]} 37... Rxg2+ {[%clk 0:00:13.6]} 38. Kf4 {[%clk 0:00:43.5]}
38... Rxh2 {[%clk 0:00:14]} 39. b6 {[%clk 0:00:42.1]} 39... Rb2 {[%clk
0:00:12.3]} 40. a5 {[%clk 0:00:42]} 40... Kh7 {[%clk 0:00:12.3]} 41. Rxf7 {[%clk
0:00:38.8]} 41... Bc4 {[%clk 0:00:12.2]} 42. Rc7 {[%clk 0:00:37.2]} 42... Bd5
{[%clk 0:00:12.5]} 43. Bf8 {[%clk 0:00:34.3]} 43... Rb3 {[%clk 0:00:09.8]} 44.
Bxg7 {[%clk 0:00:31.9]} 44... Rxf3+ {[%clk 0:00:09.1]} 45. Ke5 {[%clk
0:00:32.2]} 45... Ba8 {[%clk 0:00:08.4]} 46. b7 {[%clk 0:00:30]} 46... Bxb7
{[%clk 0:00:08.3]} 47. Rxb7 {[%clk 0:00:30]} 47... Kg6 {[%clk 0:00:08.7]} 48. a6
{[%clk 0:00:26.8]} 48... Ra3 {[%clk 0:00:08.4]} 49. a7 {[%clk 0:00:26.2]} 49...
Ra5+ {[%clk 0:00:08.5]} 50. Kd6 {[%clk 0:00:24.6]} 50... h5 {[%clk 0:00:09]} 51.
Be5 {[%clk 0:00:22.5]} 51... h4 {[%clk 0:00:08.6]} 52. Bd4 {[%clk 0:00:17.8]}
52... h3 {[%clk 0:00:07.9]} 53. Rg7+ {[%clk 0:00:16.9]} 53... Kf5 {[%clk
0:00:07.4]} 54. Rh7 {[%clk 0:00:16.7]} 54... Kg4 {[%clk 0:00:07]} 55. Bb6 {[%clk
0:00:14.7]} 55... Ra6 {[%clk 0:00:07.1]} 56. Kc7 {[%clk 0:00:13.7]} 56... Kg3
{[%clk 0:00:07.5]} 57. Kb7 {[%clk 0:00:11.3]} 57... Ra1 {[%clk 0:00:06.6]} 58.
a8=Q {[%clk 0:00:09]} 58... Rxa8 {[%clk 0:00:06.4]} 59. Kxa8 {[%clk 0:00:09.4]}
59... h2 {[%clk 0:00:07]} 60. Bc7+ {[%clk 0:00:09.8]} 60... Kg2 {[%clk
0:00:07.5]} 61. Bxh2 {[%clk 0:00:10.4]} 61... Kf1 {[%clk 0:00:07.3]} 62. Bb8
{[%clk 0:00:11.3]} 62... Ke2 {[%clk 0:00:08.2]} 63. Kb7 {[%clk 0:00:12]} 63...
Kf1 {[%clk 0:00:09.1]} 64. Rh2 {[%clk 0:00:11.7]} 64... Ke1 {[%clk 0:00:10]} 65.
Ra2 {[%clk 0:00:12]} 65... Kf1 {[%clk 0:00:10.9]} 66. Kb6 {[%clk 0:00:12.5]}
66... Ke1 {[%clk 0:00:11.8]} 67. Kb5 {[%clk 0:00:13.1]} 67... Kd1 {[%clk
0:00:12.7]} 68. Kb4 {[%clk 0:00:13.6]} 68... Kc1 {[%clk 0:00:13.6]} 69. Kb3
{[%clk 0:00:14]} 69... Kb1 {[%clk 0:00:14.5]} 70. Rh2 {[%clk 0:00:13.5]} 70...
Kc1 {[%clk 0:00:15.4]} 71. Bc7 {[%clk 0:00:13.2]} 71... Kd1 {[%clk 0:00:16.3]}
72. Kc3 {[%clk 0:00:12.9]} 72... Ke1 {[%clk 0:00:17.2]} 73. Kd3 {[%clk
0:00:13.2]} 73... Kf1 {[%clk 0:00:18.1]} 74. Ke3 {[%clk 0:00:13.5]} 74... Kg1
{[%clk 0:00:19]} 75. Rc2 {[%clk 0:00:13.3]} 75... Kf1 {[%clk 0:00:19.9]} 76. Bd6
{[%clk 0:00:13.2]} 76... Ke1 {[%clk 0:00:20.8]} 77. Rc1# {[%clk 0:00:12.9]} 1-0

[Event "Early-Titled-Tuesday-Blitz-October-17-2023"]
[Site "Chess.com"]
[Date "2023.10.17"]
[Round "11"]
[White "Wizard_97"]
[Black "kingofthenil"]
[Result "0-1"]
[WhiteElo "2578"]
[BlackElo "2725"]
[TimeControl "180+1"]
[EndTime "10:11:06 PDT"]
[Termination "kingofthenil won by checkmate"]

1. e4 {[%clk 0:03:00.9]} 1... Nc6 {[%clk 0:02:59.1]} 2. d4 {[%clk 0:02:59.5]}
2... d5 {[%clk 0:02:59.2]} 3. e5 {[%clk 0:02:59.4]} 3... Bf5 {[%clk 0:02:55.6]}
4. Nf3 {[%clk 0:02:47.3]} 4... e6 {[%clk 0:02:56]} 5. Bb5 {[%clk 0:02:47.3]}
5... Ne7 {[%clk 0:02:54.9]} 6. O-O {[%clk 0:02:47.5]} 6... a6 {[%clk 0:02:51.2]}
7. Bd3 {[%clk 0:02:47.3]} 7... f6 {[%clk 0:02:47]} 8. Re1 {[%clk 0:02:40.9]}
8... Qd7 {[%clk 0:02:43.9]} 9. c3 {[%clk 0:02:38.6]} 9... Bxd3 {[%clk
0:02:40.9]} 10. Qxd3 {[%clk 0:02:38.3]} 10... fxe5 {[%clk 0:02:41.2]} 11. dxe5
{[%clk 0:02:28.4]} 11... Ng6 {[%clk 0:02:18.4]} 12. Nbd2 {[%clk 0:02:20.8]}
12... Bc5 {[%clk 0:02:13.1]} 13. Nb3 {[%clk 0:02:20.1]} 13... Bb6 {[%clk
0:02:11.7]} 14. Be3 {[%clk 0:02:14.7]} 14... Bxe3 {[%clk 0:02:10.9]} 15. Rxe3
{[%clk 0:02:14.5]} 15... O-O {[%clk 0:02:10.8]} 16. Rae1 {[%clk 0:02:04.9]}
16... Nf4 {[%clk 0:02:02.6]} 17. Qc2 {[%clk 0:02:03.6]} 17... Qf7 {[%clk
0:02:00.2]} 18. g3 {[%clk 0:01:47.8]} 18... Ng6 {[%clk 0:01:32.6]} 19. Nc5
{[%clk 0:01:45.7]} 19... Qe7 {[%clk 0:01:22.5]} 20. Nd3 {[%clk 0:01:39.4]} 20...
Rf5 {[%clk 0:01:20.2]} 21. Kg2 {[%clk 0:01:30.3]} 21... Raf8 {[%clk 0:01:13.5]}
22. Qe2 {[%clk 0:01:26]} 22... Qf7 {[%clk 0:01:07.6]} 23. h4 {[%clk 0:01:26.1]}
23... h6 {[%clk 0:01:04.9]} 24. Rf1 {[%clk 0:00:57.2]} 24... Nge7 {[%clk
0:00:52.1]} 25. g4 {[%clk 0:00:39.8]} 25... Qg6 {[%clk 0:00:50.8]} 26. Kh3
{[%clk 0:00:38.1]} 26... Rf4 {[%clk 0:00:33.4]} 27. Nxf4 {[%clk 0:00:35.4]}
27... Rxf4 {[%clk 0:00:34.3]} 28. Rg1 {[%clk 0:00:33.3]} 28... h5 {[%clk
0:00:31.8]} 29. Ng5 {[%clk 0:00:24.2]} 29... hxg4+ {[%clk 0:00:26.3]} 30. Rxg4
{[%clk 0:00:25.1]} 30... Qf5 {[%clk 0:00:26]} 31. Kg3 {[%clk 0:00:22.2]} 31...
Ng6 {[%clk 0:00:17.6]} 32. h5 {[%clk 0:00:14]} 32... Ncxe5 {[%clk 0:00:14.2]}
33. Rxe5 {[%clk 0:00:05.5]} 33... Rxg4+ {[%clk 0:00:10.2]} 34. Qxg4 {[%clk
0:00:06]} 34... Qxe5+ {[%clk 0:00:10.4]} 35. Kf3 {[%clk 0:00:05]} 35... Qf6+
{[%clk 0:00:08.4]} 36. Kg3 {[%clk 0:00:05.4]} 36... Nf8 {[%clk 0:00:05.5]} 37.
f4 {[%clk 0:00:04.7]} 37... e5 {[%clk 0:00:03.2]} 38. fxe5 {[%clk 0:00:04.1]}
38... Qxe5+ {[%clk 0:00:04.1]} 39. Kh4 {[%clk 0:00:04.4]} 39... Qf6 {[%clk
0:00:04.3]} 40. Kg3 {[%clk 0:00:03.6]} 40... c6 {[%clk 0:00:04.8]} 41. Nf3
{[%clk 0:00:03.6]} 41... Ne6 {[%clk 0:00:04.7]} 42. Nh4 {[%clk 0:00:04]} 42...
Ng5 {[%clk 0:00:05.1]} 43. Nf5 {[%clk 0:00:04]} 43... Ne4+ {[%clk 0:00:05.6]}
44. Kh3 {[%clk 0:00:04.2]} 44... Kf8 {[%clk 0:00:05.7]} 45. Kg2 {[%clk
0:00:03.1]} 45... Ng5 {[%clk 0:00:05.7]} 46. Nd4 {[%clk 0:00:03]} 46... Ne4
{[%clk 0:00:05.6]} 47. Qc8+ {[%clk 0:00:03.4]} 47... Kf7 {[%clk 0:00:05.9]} 48.
Qxb7+ {[%clk 0:00:04.1]} 48... Kg8 {[%clk 0:00:06.6]} 49. Qc8+ {[%clk
0:00:03.8]} 49... Kh7 {[%clk 0:00:07.1]} 50. Qf5+ {[%clk 0:00:04.5]} 50... Kh6
{[%clk 0:00:06.3]} 51. Qxf6+ {[%clk 0:00:02.7]} 51... gxf6 {[%clk 0:00:07.2]}
52. Nxc6 {[%clk 0:00:03.3]} 52... Kxh5 {[%clk 0:00:07.6]} 53. Nb8 {[%clk
0:00:04]} 53... a5 {[%clk 0:00:07.2]} 54. Na6 {[%clk 0:00:04.9]} 54... Kg4
{[%clk 0:00:07]} 55. Nc7 {[%clk 0:00:05.6]} 55... f5 {[%clk 0:00:06.3]} 56. Nxd5
{[%clk 0:00:06.3]} 56... f4 {[%clk 0:00:07.2]} 57. Nxf4 {[%clk 0:00:06.8]} 57...
Kxf4 {[%clk 0:00:08]} 58. b4 {[%clk 0:00:07.4]} 58... a4 {[%clk 0:00:08.2]} 59.
b5 {[%clk 0:00:08.1]} 59... Ke5 {[%clk 0:00:06.5]} 60. c4 {[%clk 0:00:06.8]}
60... a3 {[%clk 0:00:06]} 61. Kf3 {[%clk 0:00:06.4]} 61... Nc3 {[%clk
0:00:06.7]} 62. Ke3 {[%clk 0:00:04.8]} 62... Nxa2 {[%clk 0:00:07.3]} 63. Kd2
{[%clk 0:00:05.1]} 63... Nb4 {[%clk 0:00:07]} 64. Kc3 {[%clk 0:00:05.5]} 64...
Kd6 {[%clk 0:00:06.8]} 65. Kb3 {[%clk 0:00:03.3]} 65... a2 {[%clk 0:00:07.2]}
66. Kb2 {[%clk 0:00:03.2]} 66... Kc5 {[%clk 0:00:07.1]} 67. Ka1 {[%clk
0:00:03.1]} 67... Kxc4 {[%clk 0:00:07.3]} 68. b6 {[%clk 0:00:03.2]} 68... Kb3
{[%clk 0:00:07.7]} 69. b7 {[%clk 0:00:02.9]} 69... Nc2# {[%clk 0:00:08.6]} 0-1

[Event "Early-Titled-Tuesday-Blitz-October-17-2023"]
[Site "Chess.com"]
[Date "2023.10.17"]
[Round "11"]
[White "Msb2"]
[Black "seopie"]
[Result "1/2-1/2"]
[WhiteElo "3059"]
[BlackElo "2863"]
[TimeControl "180+1"]
[EndTime "10:11:07 PDT"]
[Termination "Game drawn by repetition"]

1. d4 {[%clk 0:03:00.9]} 1... Nf6 {[%clk 0:02:59.2]} 2. c4 {[%clk 0:03:00.4]}
2... e6 {[%clk 0:02:59.5]} 3. Nc3 {[%clk 0:03:00.4]} 3... Bb4 {[%clk 0:02:58.6]}
4. e3 {[%clk 0:03:01.1]} 4... b6 {[%clk 0:02:57.6]} 5. Bd3 {[%clk 0:03:00]} 5...
Bb7 {[%clk 0:02:57.1]} 6. Nf3 {[%clk 0:03:00.7]} 6... Ne4 {[%clk 0:02:56.4]} 7.
O-O {[%clk 0:03:00.5]} 7... Nxc3 {[%clk 0:02:43.7]} 8. bxc3 {[%clk 0:03:01.4]}
8... Bxc3 {[%clk 0:02:44.5]} 9. Rb1 {[%clk 0:03:01.2]} 9... c5 {[%clk
0:02:42.6]} 10. Qc2 {[%clk 0:02:51.5]} 10... cxd4 {[%clk 0:02:33]} 11. exd4
{[%clk 0:02:45.8]} 11... Ba5 {[%clk 0:02:28]} 12. Bg5 {[%clk 0:02:40.3]} 12...
Qc7 {[%clk 0:02:23.9]} 13. d5 {[%clk 0:02:36.6]} 13... h6 {[%clk 0:02:22.5]} 14.
Bh4 {[%clk 0:02:35.9]} 14... Na6 {[%clk 0:02:22.7]} 15. Qb2 {[%clk 0:02:28.8]}
15... O-O {[%clk 0:02:19.9]} 16. Bg3 {[%clk 0:02:26.7]} 16... Qd8 {[%clk
0:02:15.3]} 17. Rbd1 {[%clk 0:02:23.1]} 17... Bb4 {[%clk 0:02:11.4]} 18. Bb1
{[%clk 0:02:20]} 18... exd5 {[%clk 0:02:05.2]} 19. Ne5 {[%clk 0:02:09.7]} 19...
f5 {[%clk 0:01:35]} 20. Ng6 {[%clk 0:02:06]} 20... Rf6 {[%clk 0:01:31.2]} 21.
Bh4 {[%clk 0:02:06.5]} 21... Qe8 {[%clk 0:01:28.6]} 22. Nf4 {[%clk 0:01:40.4]}
22... Rf8 {[%clk 0:01:26.4]} 23. Nxd5 {[%clk 0:01:36.9]} 23... Bc5 {[%clk
0:01:07.6]} 24. Rfe1 {[%clk 0:01:18.4]} 24... Qg6 {[%clk 0:01:07.3]} 25. Be7
{[%clk 0:01:05.9]} 25... Rfe8 {[%clk 0:01:01.5]} 26. Bxc5 {[%clk 0:00:42.4]}
26... Nxc5 {[%clk 0:01:00.8]} 27. Nf4 {[%clk 0:00:41]} 27... Qf7 {[%clk
0:00:52.5]} 28. h3 {[%clk 0:00:40.3]} 28... Bc6 {[%clk 0:00:40]} 29. Qd4 {[%clk
0:00:39.9]} 29... Ne6 {[%clk 0:00:36.4]} 30. Qd6 {[%clk 0:00:40.2]} 30... Nxf4
{[%clk 0:00:35.6]} 31. Qxf4 {[%clk 0:00:41.1]} 31... Be4 {[%clk 0:00:30.9]} 32.
Bxe4 {[%clk 0:00:36.3]} 32... fxe4 {[%clk 0:00:31.8]} 33. Rxe4 {[%clk
0:00:36.6]} 33... Rxe4 {[%clk 0:00:30.6]} 34. Qxe4 {[%clk 0:00:37.5]} 34... Rc8
{[%clk 0:00:29.6]} 35. Rd4 {[%clk 0:00:25.2]} 35... Re8 {[%clk 0:00:29.8]} 36.
Qc2 {[%clk 0:00:17.9]} 36... Re1+ {[%clk 0:00:27.6]} 37. Kh2 {[%clk 0:00:18.6]}
37... Qe6 {[%clk 0:00:27.5]} 38. Qd2 {[%clk 0:00:18.6]} 38... Qe5+ {[%clk
0:00:22.9]} 39. f4 {[%clk 0:00:18.8]} 39... Qe2 {[%clk 0:00:14.8]} 40. Rxd7
{[%clk 0:00:16.7]} 40... Qxd2 {[%clk 0:00:15.2]} 41. Rxd2 {[%clk 0:00:17.6]}
41... Re4 {[%clk 0:00:15.8]} 42. Rd8+ {[%clk 0:00:14.9]} 42... Kh7 {[%clk
0:00:15.8]} 43. f5 {[%clk 0:00:15.7]} 43... Rxc4 {[%clk 0:00:10.3]} 44. Rd7
{[%clk 0:00:16.1]} 44... Ra4 {[%clk 0:00:06.4]} 45. f6 {[%clk 0:00:16.2]} 45...
Kg6 {[%clk 0:00:06.9]} 46. fxg7 {[%clk 0:00:11.2]} 46... Kh7 {[%clk 0:00:07.4]}
47. Rd2 {[%clk 0:00:08.4]} 47... Kxg7 {[%clk 0:00:07.6]} 48. g4 {[%clk
0:00:09.1]} 48... Kg6 {[%clk 0:00:07.5]} 49. Kg3 {[%clk 0:00:09.6]} 49... b5
{[%clk 0:00:07.1]} 50. Kh4 {[%clk 0:00:10.1]} 50... Ra3 {[%clk 0:00:07.3]} 51.
Rd6+ {[%clk 0:00:10.1]} 51... Kg7 {[%clk 0:00:07.7]} 52. Rd7+ {[%clk 0:00:09]}
52... Kg6 {[%clk 0:00:07.8]} 53. Rd6+ {[%clk 0:00:09.2]} 53... Kg7 {[%clk
0:00:08.2]} 54. Rd2 {[%clk 0:00:10.1]} 54... a6 {[%clk 0:00:08.1]} 55. Rc2
{[%clk 0:00:10.6]} 55... a5 {[%clk 0:00:08.1]} 56. Rd2 {[%clk 0:00:09.2]} 56...
b4 {[%clk 0:00:08.5]} 57. Rc2 {[%clk 0:00:09.8]} 57... Kg6 {[%clk 0:00:07.8]}
58. Re2 {[%clk 0:00:09.6]} 58... Kg7 {[%clk 0:00:08.1]} 59. Rh2 {[%clk
0:00:09.5]} 59... Kg6 {[%clk 0:00:08.4]} 60. Rg2 {[%clk 0:00:10]} 60... Rc3
{[%clk 0:00:07.8]} 61. Rd2 {[%clk 0:00:09.9]} 61... Ra3 {[%clk 0:00:07.8]} 62.
Rh2 {[%clk 0:00:09.8]} 62... Rc3 {[%clk 0:00:07.6]} 63. Re2 {[%clk 0:00:09.8]}
63... Ra3 {[%clk 0:00:07.5]} 64. Re6+ {[%clk 0:00:10]} 64... Kg7 {[%clk
0:00:07.7]} 65. Re7+ {[%clk 0:00:10.4]} 65... Kg6 {[%clk 0:00:08]} 66. Re2
{[%clk 0:00:11.1]} 66... Kg7 {[%clk 0:00:07.4]} 67. Rh2 {[%clk 0:00:10.5]} 67...
Kg6 {[%clk 0:00:07.1]} 68. Rc2 {[%clk 0:00:10.5]} 68... Rc3 {[%clk 0:00:06.4]}
69. Rd2 {[%clk 0:00:10.1]} 69... Ra3 {[%clk 0:00:06.3]} 70. Rg2 {[%clk
0:00:06.8]} 70... Kg7 {[%clk 0:00:05.4]} 71. Rh2 {[%clk 0:00:04.8]} 1/2-1/2

[Event "Early-Titled-Tuesday-Blitz-October-17-2023"]
[Site "Chess.com"]
[Date "2023.10.17"]
[Round "11"]
[White "Maxfan2008"]
[Black "SlavenPastar"]
[Result "1/2-1/2"]
[WhiteElo "2534"]
[BlackElo "2642"]
[TimeControl "180+1"]
[EndTime "10:11:16 PDT"]
[Termination "Game drawn - insufficient material"]

1. d4 {[%clk 0:03:00.9]} 1... b6 {[%clk 0:02:59.9]} 2. c4 {[%clk 0:02:59.1]}
2... Bb7 {[%clk 0:02:59.7]} 3. Nc3 {[%clk 0:02:59.4]} 3... g6 {[%clk 0:02:58.8]}
4. e4 {[%clk 0:02:53.1]} 4... Bg7 {[%clk 0:02:59]} 5. d5 {[%clk 0:02:49.5]} 5...
Bxc3+ {[%clk 0:02:52.9]} 6. bxc3 {[%clk 0:02:50.4]} 6... e5 {[%clk 0:02:52.7]}
7. h4 {[%clk 0:02:45.8]} 7... d6 {[%clk 0:02:50.5]} 8. h5 {[%clk 0:02:41.1]}
8... Nd7 {[%clk 0:02:50.3]} 9. Nh3 {[%clk 0:02:28.1]} 9... Qe7 {[%clk
0:02:22.7]} 10. Ng5 {[%clk 0:02:09.5]} 10... Nc5 {[%clk 0:01:31.1]} 11. hxg6
{[%clk 0:01:27.7]} 11... fxg6 {[%clk 0:01:30]} 12. Qg4 {[%clk 0:01:20]} 12...
Bc8 {[%clk 0:01:26.7]} 13. Qg3 {[%clk 0:01:17.9]} 13... Nf6 {[%clk 0:01:16.1]}
14. f3 {[%clk 0:01:12.4]} 14... Bd7 {[%clk 0:01:11.2]} 15. Be2 {[%clk
0:00:54.1]} 15... O-O-O {[%clk 0:01:09.9]} 16. a4 {[%clk 0:00:49.8]} 16... a5
{[%clk 0:01:08.7]} 17. Be3 {[%clk 0:00:48.3]} 17... Nxa4 {[%clk 0:01:00.3]} 18.
Ne6 {[%clk 0:00:35.4]} 18... Bxe6 {[%clk 0:00:21.3]} 19. Rxa4 {[%clk 0:00:34.2]}
19... Bd7 {[%clk 0:00:17.4]} 20. Ra3 {[%clk 0:00:33.5]} 20... Be8 {[%clk
0:00:14.5]} 21. Kd2 {[%clk 0:00:31.7]} 21... Nd7 {[%clk 0:00:10.6]} 22. Rb1
{[%clk 0:00:30.1]} 22... Nc5 {[%clk 0:00:10.1]} 23. Bxc5 {[%clk 0:00:26.9]}
23... dxc5 {[%clk 0:00:11]} 24. Bd1 {[%clk 0:00:24.9]} 24... Bd7 {[%clk
0:00:10.8]} 25. Kc1 {[%clk 0:00:18]} 25... Qf6 {[%clk 0:00:10.8]} 26. Rb2 {[%clk
0:00:16.8]} 26... h5 {[%clk 0:00:08.2]} 27. Qf2 {[%clk 0:00:12.6]} 27... Rdf8
{[%clk 0:00:04.9]} 28. Rb1 {[%clk 0:00:11.7]} 28... g5 {[%clk 0:00:04.9]} 29.
Qb2 {[%clk 0:00:11.3]} 29... Kd8 {[%clk 0:00:03.7]} 30. Ba4 {[%clk 0:00:10]}
30... Qf4+ {[%clk 0:00:03.8]} 31. Kc2 {[%clk 0:00:08.5]} 31... Qe3 {[%clk
0:00:04.1]} 32. Bxd7 {[%clk 0:00:06.9]} 32... Qe2+ {[%clk 0:00:04.5]} 33. Kb3
{[%clk 0:00:07]} 33... Qxb2+ {[%clk 0:00:05.4]} 34. Rxb2 {[%clk 0:00:07.4]}
34... Kxd7 {[%clk 0:00:06.3]} 35. Ka4 {[%clk 0:00:07.6]} 35... g4 {[%clk
0:00:06.8]} 36. fxg4 {[%clk 0:00:05]} 36... hxg4 {[%clk 0:00:07.7]} 37. Ra1
{[%clk 0:00:05.3]} 37... Rf4 {[%clk 0:00:08.1]} 38. Re2 {[%clk 0:00:04.4]} 38...
g3 {[%clk 0:00:07.8]} 39. Rae1 {[%clk 0:00:03.4]} 39... Rh2 {[%clk 0:00:08.1]}
40. Kb5 {[%clk 0:00:03.5]} 40... Rf2 {[%clk 0:00:08.2]} 41. Rxf2 {[%clk
0:00:03.2]} 41... gxf2 {[%clk 0:00:09.1]} 42. Rf1 {[%clk 0:00:03.3]} 42... Rxg2
{[%clk 0:00:09.6]} 43. Ka4 {[%clk 0:00:03.5]} 43... Rg4 {[%clk 0:00:08.9]} 44.
Rxf2 {[%clk 0:00:03.1]} 44... Rxe4 {[%clk 0:00:09.6]} 45. Kb5 {[%clk 0:00:03.8]}
45... Re3 {[%clk 0:00:09.5]} 46. Rf7+ {[%clk 0:00:04]} 46... Kd8 {[%clk
0:00:09.1]} 47. Rf8+ {[%clk 0:00:04.3]} 47... Ke7 {[%clk 0:00:09.1]} 48. Rc8
{[%clk 0:00:04.7]} 48... Kd7 {[%clk 0:00:09.5]} 49. Rh8 {[%clk 0:00:03.9]} 49...
Rxc3 {[%clk 0:00:08.5]} 50. Rh7+ {[%clk 0:00:04.3]} 50... Kd8 {[%clk 0:00:08.6]}
51. Kc6 {[%clk 0:00:04.3]} 51... Rxc4 {[%clk 0:00:06.5]} 52. Rd7+ {[%clk
0:00:03.8]} 52... Ke8 {[%clk 0:00:06.5]} 53. Rxc7 {[%clk 0:00:04.7]} 53... Rd4
{[%clk 0:00:06.5]} 54. d6 {[%clk 0:00:05.1]} 54... c4 {[%clk 0:00:05.8]} 55.
Rc8+ {[%clk 0:00:05.3]} 55... Kf7 {[%clk 0:00:06]} 56. d7 {[%clk 0:00:05.2]}
56... Kf6 {[%clk 0:00:04.4]} 57. d8=Q+ {[%clk 0:00:05.1]} 57... Rxd8 {[%clk
0:00:04.4]} 58. Rxd8 {[%clk 0:00:06]} 58... c3 {[%clk 0:00:04.2]} 59. Kb5 {[%clk
0:00:06.4]} 59... c2 {[%clk 0:00:03.2]} 60. Rc8 {[%clk 0:00:07]} 60... e4 {[%clk
0:00:03.8]} 61. Rxc2 {[%clk 0:00:07.2]} 61... Ke5 {[%clk 0:00:04.5]} 62. Kxb6
{[%clk 0:00:07]} 62... Kd4 {[%clk 0:00:04.4]} 63. Kxa5 {[%clk 0:00:05.7]} 63...
Kd3 {[%clk 0:00:04.9]} 64. Rc8 {[%clk 0:00:06]} 64... e3 {[%clk 0:00:05.6]} 65.
Rd8+ {[%clk 0:00:06]} 65... Kc3 {[%clk 0:00:05.9]} 66. Re8 {[%clk 0:00:04.4]}
66... Kd2 {[%clk 0:00:04.9]} 67. Kb4 {[%clk 0:00:04.9]} 67... e2 {[%clk
0:00:05]} 68. Rd8+ {[%clk 0:00:05.1]} 68... Kc2 {[%clk 0:00:05]} 69. Rc8+ {[%clk
0:00:05.2]} 69... Kd2 {[%clk 0:00:05.3]} 70. Rd8+ {[%clk 0:00:05.3]} 70... Kc2
{[%clk 0:00:05.1]} 71. Re8 {[%clk 0:00:05.3]} 71... Kd1 {[%clk 0:00:04.6]} 72.
Kc4 {[%clk 0:00:03.7]} 72... e1=Q {[%clk 0:00:04.6]} 73. Rxe1+ {[%clk
0:00:03.6]} 73... Kxe1 {[%clk 0:00:05.5]} 1/2-1/2